fUST/lending_fUST_20240731
["ID","MTS","AMOUNT","RATE_DAILY","PERIOD"]
[333709361,1722393041995,-500.0,0.00014653,2]
[333709363,1722393042005,-503.08409311,0.00014653,2]
[333709365,1722393042015,-500.0,0.00014653,2]
[333709367,1722393042024,-500.0,0.00014653,2]
[333709369,1722393042039,-500.0,0.00014653,2]
[333709370,1722393042048,-509.8,0.00014653,2]
[333709372,1722393042057,-502.33018296,0.00014653,2]
[333709374,1722393042067,-508.2596154,0.00014653,2]
[333709376,1722393042077,-214.05996535,0.00014653,2]
[333709378,1722393042088,-151.0,0.00014653,2]
[333709380,1722393042098,-151.0,0.00014653,2]
[333709382,1722393042110,-500.0,0.00014653,2]
[333709384,1722393042120,-500.0,0.00014653,2]
[333709386,1722393042130,-451.85911268,0.00014653,2]
[333709388,1722393042139,-402.74716185,0.00014653,2]
[333709390,1722393042149,-500.0,0.00014653,2]
[333709392,1722393042159,-487.81493607,0.00014653,2]
[333709394,1722393042168,-500.0,0.00014653,2]
[333709396,1722393042182,-500.0,0.00014653,2]
[333709399,1722393042192,-500.0,0.00014653,2]
[333709400,1722393042201,-503.75445594,0.00014653,2]
[333709402,1722393042211,-345.11721904,0.00014653,2]
[333709405,1722393042223,-154.88278096,0.00014653,2]
[333709407,1722393042233,-500.0,0.00014653,2]
[333709409,1722393042242,-500.0,0.00014653,2]
[333709411,1722393042252,-500.0,0.00014653,2]
[333709413,1722393042262,-503.14781178,0.00014653,2]
[333709415,1722393042271,-502.71982295,0.00014653,2]
[333709417,1722393042280,-500.0,0.00014653,2]
[333709419,1722393042290,-500.0,0.00014653,2]
[333709421,1722393042300,-504.9106352,0.00014653,2]
[333709423,1722393042309,-500.0,0.00014653,2]
[333709425,1722393042319,-500.0,0.00014653,2]
[333709427,1722393042329,-500.0,0.00014653,2]
[333709429,1722393042339,-500.0,0.00014653,2]
[333709431,1722393042349,-500.0,0.00014653,2]
[333709433,1722393042358,-151.0,0.00014653,2]
[333709435,1722393042367,-151.0,0.00014653,2]
[333709437,1722393042377,-151.0,0.00014653,2]
[333709438,1722393042387,-151.0,0.00014653,2]
[333709440,1722393042396,-1285.82,0.00014653,2]
[333709442,1722393042406,-151.0,0.00014653,2]
[333709444,1722393042416,-500.0,0.00014653,2]
[333709446,1722393042426,-151.0,0.00014653,2]
[333709448,1722393042438,-646.17374635,0.00014653,2]
[333709450,1722393042447,-151.0,0.00014653,2]
[333709452,1722393042456,-422.270699,0.00014653,2]
[333709454,1722393042465,-638.37040914,0.00014653,2]
[333709456,1722393042475,-840.33,0.00014653,2]
[333709458,1722393042484,-422.270699,0.00014653,2]
[333709460,1722393042495,-500.0,0.00014653,2]
[333709462,1722393042504,-151.0,0.00014653,2]
[333709464,1722393042514,-151.0,0.00014653,2]
[333709466,1722393042523,-500.0,0.00014653,2]
[333709468,1722393042532,-500.0,0.00014653,2]
[333709470,1722393042542,-500.0,0.00014653,2]
[333709472,1722393042554,-501.46007152,0.00014653,2]
[333709474,1722393042565,-151.0,0.00014653,2]
[333709476,1722393042574,-500.0,0.00014653,2]
[333709478,1722393042585,-500.0,0.00014654,2]
[333709480,1722393042594,-819.64,0.00014654,2]
[333709482,1722393042604,-750.88,0.00014655,2]
[333709484,1722393042613,-500.0,0.00014655,2]
[333709486,1722393042623,-500.0,0.00014655,2]
[333709487,1722393042633,-1271.3,0.00014655,2]
[333709489,1722393042642,-832.47,0.00014655,2]
[333709491,1722393042653,-814.91,0.00014655,2]
[333709493,1722393042662,-500.0,0.00014655,2]
[333709495,1722393042673,-500.0,0.00014655,2]
[333709497,1722393042685,-500.0,0.00014655,2]
[333709498,1722393042695,-381.72799386,0.00014655,2]
[333709499,1722393042705,-151.0,0.00014655,2]
[333709500,1722393042715,-151.0,0.00014655,2]
[333709501,1722393042725,-500.0,0.00014655,2]
[333709502,1722393042735,-3388.24,0.00014655,2]
[333709503,1722393042745,-249.359471,0.00014655,2]
[333709504,1722393042755,-249.359471,0.00014655,2]
[333709505,1722393042765,-500.0,0.00014655,2]
[333709506,1722393042775,-151.0,0.00014655,2]
[333709507,1722393042784,-151.0,0.00014656,2]
[333709508,1722393042793,-500.0,0.00014656,2]
[333709509,1722393042802,-1491.48,0.00014656,2]
[333709510,1722393042811,-151.0,0.00014656,2]
[333709512,1722393042820,-500.0,0.00014656,2]
[333709514,1722393042829,-500.0,0.00014656,2]
[333709516,1722393042838,-505.84159527,0.00014656,2]
[333709518,1722393042847,-500.0,0.00014656,2]
[333709520,1722393042857,-849.22,0.00014656,2]
[333709522,1722393042866,-994.21,0.00014656,2]
[333709524,1722393042875,-151.0,0.00014656,2]
[333709526,1722393042885,-151.0,0.00014656,2]
[333709528,1722393042894,-151.0,0.00014656,2]
[333709530,1722393042905,-259.268009,0.00014656,2]
[333709532,1722393042915,-151.0,0.00014656,2]
[333709534,1722393042924,-151.0,0.00014656,2]
[333709536,1722393042937,-151.0,0.00014656,2]
[333709537,1722393042947,-422.270699,0.00014656,2]
[333709539,1722393042956,-422.270699,0.00014656,2]
[333709541,1722393042966,-5651.13019442,0.00014657,2]
[333709546,1722393043418,-2432.52,0.0001465,2]
[333709547,1722393043427,-19159.89503808,0.00014657,2]
[333709548,1722393043438,-500.0,0.00014664,2]
[333709549,1722393043449,-819.64,0.00014664,2]
[333709550,1722393043459,-151.0,0.00014665,2]
[333709551,1722393043469,-151.0,0.00014665,2]
[333709552,1722393043478,-151.0,0.00014665,2]
[333709553,1722393043488,-151.0,0.00014665,2]
[333709554,1722393043498,-151.0,0.00014665,2]
[333709555,1722393043508,-151.0,0.00014665,2]
[333709556,1722393043518,-169.62348,0.00014665,2]
[333709557,1722393043527,-151.0,0.00014665,2]
[333709558,1722393043537,-151.0,0.00014666,2]
[333709560,1722393043547,-500.0,0.00014666,2]
[333709562,1722393043556,-500.0,0.00014667,2]
[333709564,1722393043567,-280.18046328,0.00014667,2]
[333709565,1722393043576,-500.0,0.00014667,2]
[333709567,1722393043586,-1411.82,0.00014667,2]
[333709569,1722393043596,-501.65421459,0.00014667,2]
[333709570,1722393043606,-504.54932801,0.00014667,2]
[333709571,1722393043616,-500.0,0.00014667,2]
[333709572,1722393043625,-501.84735805,0.00014667,2]
[333709573,1722393043635,-151.0,0.00014667,2]
[333709574,1722393043644,-151.0,0.00014667,2]
[333709575,1722393043654,-151.0,0.00014667,2]
[333709576,1722393043663,-151.0,0.00014667,2]
[333709577,1722393043673,-249.359471,0.00014667,2]
[333709578,1722393043685,-249.359471,0.00014667,2]
[333709579,1722393043694,-151.0,0.00014667,2]
[333709580,1722393043704,-151.0,0.00014667,2]
[333709581,1722393043714,-572.69654602,0.00014669,5]
[333709582,1722393043725,-52237.28892384,0.00014669,5]
[333709583,1722393043734,-24811.0252325,0.00014669,2]
[333709584,1722393043744,-819.64,0.00014678,2]
[333709585,1722393043754,-819.64,0.00014678,2]
[333709586,1722393043764,-151.0,0.00014679,2]
[333709587,1722393043774,-261.637554,0.00014679,2]
[333709588,1722393043784,-151.0,0.00014679,2]
[333709589,1722393043794,-151.0,0.00014679,2]
[333709590,1722393043804,-249.359471,0.00014679,2]
[333709591,1722393043814,-249.359471,0.00014679,2]
[333709592,1722393043823,-151.0,0.00014679,2]
[333709593,1722393043833,-151.0,0.00014679,2]
[333709594,1722393043843,-151.0,0.00014679,2]
[333709595,1722393043852,-151.0,0.00014679,2]
[333709597,1722393043862,-151.0,0.00014679,2]
[333709598,1722393043871,-151.0,0.00014679,2]
[333709599,1722393043881,-151.0,0.00014679,2]
[333709600,1722393043890,-422.270699,0.00014679,2]
[333709601,1722393043900,-422.270699,0.00014679,2]
[333709602,1722393043910,-422.270699,0.00014679,2]
[333709603,1722393043920,-422.270699,0.00014679,2]
[333709604,1722393043931,-819.64,0.00014679,2]
[333709605,1722393043941,-151.0,0.00014679,2]
[333709606,1722393043951,-24811.0252325,0.0001468,2]
[333709607,1722393043960,-819.64,0.00014688,2]
[333709609,1722393043971,-151.0,0.00014689,2]
[333709610,1722393043982,-151.0,0.00014689,2]
[333709611,1722393043992,-151.0,0.00014689,2]
[333709612,1722393044003,-151.0,0.00014689,2]
[333709613,1722393044014,-151.0,0.00014689,2]
[333709614,1722393044025,-249.359471,0.00014689,2]
[333709615,1722393044040,-249.359471,0.00014689,2]
[333709616,1722393044050,-500.0,0.00014689,2]
[333709617,1722393044060,-500.0,0.00014689,2]
[333709618,1722393044069,-500.0,0.00014689,2]
[333709619,1722393044081,-500.0,0.00014689,2]
[333709620,1722393044090,-500.0,0.00014689,2]
[333709621,1722393044100,-151.0,0.00014689,2]
[333709622,1722393044111,-151.0,0.00014689,2]
[333709623,1722393044121,-151.0,0.00014689,2]
[333709624,1722393044131,-151.0,0.00014689,2]
[333709625,1722393044140,-422.270699,0.00014689,2]
[333709626,1722393044150,-422.270699,0.00014689,2]
[333709627,1722393044160,-819.64,0.00014689,2]
[333709628,1722393044169,-816.0307094,0.00014689,2]
[333709629,1722393044180,-291.20043196,0.0001469,2]
[333709630,1722393044190,-527.06939469,0.0001469,2]
[333709631,1722393044200,-170.05525585,0.0001469,2]
[333709632,1722393044210,-994.7859049,0.0001469,2]
[333709633,1722393044220,-1091.29802379,0.0001469,2]
[333709634,1722393044230,-151.0,0.0001469,2]
[333709635,1722393044239,-153.299468,0.0001469,2]
[333709636,1722393044249,-249.359471,0.0001469,2]
[333709637,1722393044425,-249.359471,0.0001469,2]
[333709638,1722393044437,-151.0,0.0001469,2]
[333709639,1722393044446,-422.270699,0.0001469,2]
[333709640,1722393044456,-422.270699,0.0001469,2]
[333709641,1722393044465,-150.112233,0.000147,2]
[333709642,1722393044475,-153.0,0.000147,2]
[333709643,1722393044486,-204.8345161,0.000147,2]
[333709644,1722393044495,-153.0,0.000147,2]
[333709645,1722393044505,-3000.0,0.000147,30]
[333709646,1722393044515,-153.0,0.000147,2]
[333709647,1722393044524,-153.0,0.000147,2]
[333709648,1722393044534,-592.6780948,0.000147,2]
[333709649,1722393044544,-306.0,0.000147,2]
[333709650,1722393044554,-206.8555981,0.000147,2]
[333709651,1722393044564,-153.0,0.000147,2]
[333709652,1722393044574,-153.0,0.000147,2]
[333709653,1722393044583,-206.8555981,0.000147,2]
[333709654,1722393044593,-153.0,0.000147,2]
[333709655,1722393044603,-209.1468309,0.000147,2]
[333709656,1722393044614,-153.9318219,0.000147,2]
[333709657,1722393044623,-3000.0,0.0001471,30]
[333709658,1722393044633,-3000.0,0.0001472,30]
[333709659,1722393044643,-3000.0,0.0001473,30]
[333709660,1722393044653,-151.0,0.0001473,2]
[333709661,1722393044663,-151.0,0.0001473,2]
[333709662,1722393044673,-159.413431,0.0001474,2]
[333709663,1722393044685,-3000.0,0.0001474,30]
[333709664,1722393044694,-500.0,0.00014749,2]
[333709665,1722393044703,-151.0,0.0001475,2]
[333709666,1722393044713,-3000.0,0.0001475,30]
[333709667,1722393044726,-3000.0,0.0001476,30]
[333709668,1722393044736,-3000.0,0.0001477,30]
[333709669,1722393044745,-3000.0,0.0001478,30]
[333709670,1722393044754,-819.64,0.00014789,2]
[333709671,1722393044763,-819.64,0.00014789,2]
[333709672,1722393044772,-3000.0,0.0001479,30]
[333709673,1722393044782,-249.359471,0.0001479,2]
[333709674,1722393044791,-249.359471,0.0001479,2]
[333709675,1722393044801,-151.0,0.0001479,2]
[333709676,1722393044811,-257.13964,0.0001479,2]
[333709677,1722393044821,-151.0,0.0001479,2]
[333709678,1722393044830,-151.0,0.0001479,2]
[333709679,1722393044840,-422.270699,0.0001479,2]
[333709680,1722393044850,-422.270699,0.0001479,2]
[333709681,1722393044860,-150.112233,0.000148,2]
[333709682,1722393044870,-3000.0,0.000148,30]
[333709683,1722393044880,-24811.0252325,0.000148,2]
[333709684,1722393044889,-151.0,0.0001481,2]
[333709685,1722393044899,-151.0,0.0001481,2]
[333709686,1722393044908,-3000.0,0.0001481,30]
[333709687,1722393044919,-151.0,0.0001482,2]
[333709688,1722393044931,-3000.0,0.0001482,30]
[333709689,1722393044943,-3000.0,0.0001483,30]
[333709690,1722393044954,-3000.0,0.0001484,30]
[333709691,1722393044964,-3320.193632,0.0001485,30]
[333709692,1722393044975,-200.0,0.00014879,2]
[333709693,1722393044984,-200.0,0.00014894,2]
[333709694,1722393044994,-150.112233,0.000149,2]
[333709695,1722393045003,-160.50615897,0.00014906,5]
[333709696,1722393045013,-696.4,0.00014914,2]
[333709697,1722393045025,-11645.17,0.00014914,2]
[333709698,1722393045039,-500.0,0.00014914,2]
[333709699,1722393045048,-1696.15,0.00014914,2]
[333709700,1722393045057,-1329.42,0.00014914,2]
[333709701,1722393045067,-500.0,0.00014914,2]
[333709702,1722393045077,-1325.19,0.00014914,2]
[333709703,1722393045087,-522.32302721,0.00014914,2]
[333709704,1722393045096,-959.21,0.00014914,2]
[333709705,1722393045108,-500.0,0.00014914,2]
[333709706,1722393045118,-24811.0252325,0.00014914,2]
[333709707,1722393045127,-1661.62,0.00014915,2]
[333709708,1722393045137,-500.0,0.00014915,2]
[333709709,1722393045147,-119.88776617,0.00014915,2]
[333709710,1722393045161,-4523.50223383,0.00014915,2]
[333709711,1722393045170,-1742.77,0.00014915,2]
[333709712,1722393045181,-1645.56,0.00014915,2]
[333709713,1722393045191,-1682.49,0.00014915,2]
[333709714,1722393045200,-785.87,0.00014915,2]
[333709715,1722393045210,-1242.63,0.00014915,2]
[333709716,1722393045219,-500.0,0.00014918,2]
[333709717,1722393045229,-819.64,0.00014923,2]
[333709718,1722393045239,-1993.86,0.00014924,2]
[333709719,1722393045248,-500.0,0.00014924,2]
[333709720,1722393045257,-1977.9,0.00014924,2]
[333709721,1722393045267,-500.0,0.00014924,2]
[333709722,1722393045275,-1727.13,0.00014924,2]
[333709723,1722393045285,-301.21581119,0.00014924,2]
[333709724,1722393045297,-198.78418881,0.00014924,2]
[333709725,1722393045306,-2615.99,0.00014924,2]
[333709726,1722393045315,-500.0,0.00014924,2]
[333709727,1722393045324,-1589.29,0.00014924,2]
[333709728,1722393045334,-13818.81,0.00014924,2]
[333709729,1722393045343,-500.0,0.00014924,2]
[333709730,1722393045352,-4703.34,0.00014924,2]
[333709731,1722393045361,-785.58,0.00014924,2]
[333709732,1722393045370,-1902.48,0.00014924,2]
[333709733,1722393045379,-500.0,0.00014924,2]
[333709734,1722393045389,-500.0,0.00014924,2]
[333709735,1722393045398,-1262.16,0.00014924,2]
[333709736,1722393045408,-500.0,0.00014924,2]
[333709737,1722393045417,-826.86,0.00014924,2]
[333709738,1722393045427,-578.27,0.00014924,2]
[333709739,1722393045438,-1210.33,0.00014924,2]
[333709740,1722393045446,-151.0,0.00014924,2]
[333709741,1722393045456,-888.05,0.00014924,2]
[333709742,1722393045466,-500.0,0.00014924,2]
[333709743,1722393045476,-151.0,0.00014924,2]
[333709744,1722393045485,-4623.53,0.00014924,2]
[333709745,1722393045495,-783.18,0.00014924,2]
[333709746,1722393045505,-422.270699,0.00014924,2]
[333709747,1722393045515,-422.270691,0.00014924,2]
[333709748,1722393045524,-508.83356313,0.00014924,2]
[333709749,1722393045535,-500.0,0.00014924,2]
[333709750,1722393045545,-908.38,0.00014924,2]
[333709751,1722393045555,-561.51,0.00014924,2]
[333709752,1722393045564,-500.0,0.00014924,2]
[333709753,1722393045573,-1472.6,0.00014924,2]
[333709754,1722393045582,-819.64,0.00014924,2]
[333709755,1722393045592,-819.64,0.00014924,2]
[333709756,1722393045602,-819.64,0.00014924,2]
[333709757,1722393045612,-819.64,0.00014924,2]
[333709758,1722393045621,-819.8645623,0.00014924,2]
[333709759,1722393045631,-500.0,0.00014924,2]
[333709760,1722393045640,-2432.52,0.00014924,2]
[333709761,1722393045649,-510.4768177,0.00014925,2]
[333709762,1722393045660,-215.99600512,0.00014925,2]
[333709763,1722393045669,-437.6437754,0.00014925,2]
[333709764,1722393045682,-62.3562246,0.00014925,2]
[333709765,1722393045692,-507.87189535,0.00014925,2]
[333709766,1722393045701,-218.83543061,0.00014925,2]
[333709767,1722393045711,-500.0,0.00014925,2]
[333709768,1722393045722,-902.26,0.00014925,2]
[333709769,1722393045732,-1152.09,0.00014925,2]
[333709770,1722393045741,-500.0,0.00014925,2]
[333709771,1722393045751,-89.19772562,0.00014925,2]
[333709783,1722393045988,-100000.0,0.0001469,2]
[333709784,1722393045999,-410.80227438,0.00014925,2]
[333709785,1722393046008,-618.09,0.00014925,2]
[333709786,1722393046018,-500.0,0.00014925,2]
[333709787,1722393046028,-763.72,0.00014925,2]
[333709788,1722393046041,-1423.28,0.00014925,2]
[333709789,1722393046051,-500.0,0.00014925,2]
[333709790,1722393046060,-598.64,0.00014925,2]
[333709791,1722393046071,-500.0,0.00014925,2]
[333709792,1722393046081,-500.0,0.00014925,2]
[333709795,1722393046090,-1151.88,0.00014925,2]
[333709798,1722393046100,-500.0,0.00014925,2]
[333709801,1722393046112,-1085.89,0.00014925,2]
[333709804,1722393046121,-506.90484187,0.00014925,2]
[333709806,1722393046130,-500.0,0.00014925,2]
[333709809,1722393046139,-1820.48,0.00014925,2]
[333709812,1722393046149,-500.0,0.00014925,2]
[333709815,1722393046158,-606.12,0.00014925,2]
[333709817,1722393046167,-500.0,0.00014925,2]
[333709819,1722393046176,-500.0,0.00014925,2]
[333709822,1722393046187,-249.359471,0.00014925,2]
[333709825,1722393046196,-1011.25,0.00014925,2]
[333709827,1722393046206,-249.359467,0.00014925,2]
[333709829,1722393046215,-500.0,0.00014925,2]
[333709831,1722393046224,-500.0,0.00014925,2]
[333709832,1722393046233,-500.0,0.00014925,2]
[333709834,1722393046243,-953.19,0.00014925,2]
[333709836,1722393046253,-500.0,0.00014925,2]
[333709838,1722393046262,-962.96,0.00014925,2]
[333709840,1722393046272,-500.0,0.00014925,2]
[333709842,1722393046281,-500.0,0.00014925,2]
[333709845,1722393046290,-500.0,0.00014925,2]
[333709846,1722393046300,-500.0,0.00014925,2]
[333709848,1722393046309,-500.0,0.00014925,2]
[333709850,1722393046318,-768.42,0.00014925,2]
[333709854,1722393046327,-500.0,0.00014925,2]
[333709859,1722393046337,-4197.26,0.00014925,2]
[333709863,1722393046347,-1881.24,0.00014925,2]
[333709866,1722393046356,-500.0,0.00014925,2]
[333709870,1722393046366,-500.0,0.00014925,2]
[333709873,1722393046375,-500.0,0.00014925,2]
[333709876,1722393046384,-9624.96,0.00014925,2]
[333709880,1722393046395,-500.0,0.00014925,2]
[333709883,1722393046404,-623.08,0.00014925,2]
[333709887,1722393046415,-801.7,0.00014925,2]
[333709891,1722393046425,-549.31,0.00014925,2]
[333709894,1722393046436,-735.0,0.00014925,2]
[333709898,1722393046446,-500.0,0.00014925,2]
[333709903,1722393046456,-877.89,0.00014925,2]
[333709907,1722393046466,-512.24,0.00014925,2]
[333709910,1722393046476,-500.0,0.00014925,2]
[333709913,1722393046486,-672.79,0.00014925,2]
[333709917,1722393046495,-151.0,0.00014925,2]
[333709922,1722393046505,-500.0,0.00014925,2]
[333709925,1722393046515,-469.698227,0.00014925,2]
[333709929,1722393046525,-500.0,0.00014925,2]
[333709932,1722393046534,-583.84,0.00014925,2]
[333709935,1722393046543,-1410.78,0.00014925,2]
[333709939,1722393046553,-151.0,0.00014925,2]
[333709943,1722393046562,-119.04081121,0.00014925,2]
[333709947,1722393046574,-2293.50165082,0.00014925,2]
[333709950,1722393046585,-124.81753797,0.00014925,2]
[333709953,1722393046595,-125.18248703,0.00014925,2]
[333709956,1722393046606,-814.575,0.00014925,2]
[333710126,1722393184648,163.549754,0.00012986,2]
[333710139,1722393540464,172.1733407,0.0001371,2]
[333710141,1722393705269,163.549754,0.00012986,2]
[333710142,1722393710788,2000.0,0.00013,3]
[333710143,1722393729632,2000.0,0.00014,3]
[333710144,1722393752231,1561.23260859,0.00014,3]
[333710145,1722393815352,151.0,0.00027,120]
[333710158,1722394161320,163.549754,0.00012986,2]
[333710776,1722394238835,-635.553373,0.00014247,2]
[333710779,1722394238845,-168.208575,0.00014247,2]
[333710783,1722394238856,-620.06514988,0.00014258,2]
[333710786,1722394238866,-198.02932116,0.00014518,2]
[333710788,1722394238876,-198.02932116,0.00014523,2]
[333710790,1722394238886,-198.02932116,0.00014528,2]
[333710792,1722394238895,-198.02932116,0.00014533,2]
[333710794,1722394238905,-198.02932116,0.00014538,2]
[333710796,1722394238914,-3305.35836839,0.00014611,2]
[333710798,1722394238927,-15302.91055591,0.00014611,2]
[333710800,1722394238937,-500.0,0.00014615,2]
[333710802,1722394238946,-500.0,0.00014615,2]
[333710804,1722394238955,-500.0,0.00014615,2]
[333710806,1722394238967,-500.0,0.00014615,2]
[333710808,1722394238977,-306.9098288,0.00014615,2]
[333710810,1722394238987,-500.0,0.00014615,2]
[333710812,1722394238996,-500.0,0.00014615,2]
[333710814,1722394239006,-500.0,0.00014615,2]
[333710816,1722394239016,-500.0,0.00014615,2]
[333710818,1722394239026,-500.0,0.00014615,2]
[333710820,1722394239035,-500.0,0.00014615,2]
[333710822,1722394239046,-500.0,0.00014615,2]
[333710824,1722394239056,-500.0,0.00014615,2]
[333710826,1722394239066,-500.0,0.00014615,2]
[333710828,1722394239076,-500.0,0.00014615,2]
[333710830,1722394239087,-500.0,0.00014615,2]
[333710833,1722394239097,-500.0,0.00014615,2]
[333710835,1722394239107,-500.0,0.00014615,2]
[333710836,1722394239116,-500.0,0.00014615,2]
[333710838,1722394239126,-500.0,0.00014615,2]
[333710840,1722394239136,-500.0,0.00014615,2]
[333710843,1722394239146,-500.0,0.00014615,2]
[333710845,1722394239156,-500.0,0.00014615,2]
[333710847,1722394239166,-500.0,0.00014615,2]
[333710849,1722394239176,-500.0,0.00014615,2]
[333710851,1722394239185,-500.0,0.00014615,2]
[333710853,1722394239195,-197.52178516,0.00014615,2]
[333710855,1722394239205,-500.0,0.00014615,2]
[333710857,1722394239216,-292.88328158,0.00014615,2]
[333710859,1722394239228,-207.11671842,0.00014615,2]
[333710861,1722394239238,-500.0,0.00014615,2]
[333710863,1722394239248,-500.0,0.00014615,2]
[333710865,1722394239259,-500.0,0.00014616,2]
[333710867,1722394239268,-688.22,0.00014617,2]
[333710869,1722394239278,-1075.48,0.00014617,2]
[333710871,1722394239288,-11187.42,0.00014617,2]
[333710873,1722394239299,-500.0,0.00014617,2]
[333710875,1722394239309,-7787.45,0.00014617,2]
[333710877,1722394239318,-500.0,0.00014617,2]
[333710879,1722394239328,-1670.16,0.00014617,2]
[333710881,1722394239338,-1625.48,0.00014617,2]
[333710883,1722394239347,-1577.0,0.00014617,2]
[333710886,1722394239357,-1294.86,0.00014617,2]
[333710888,1722394239367,-1634.82,0.00014617,2]
[333710890,1722394239377,-753.12,0.00014617,2]
[333710892,1722394239386,-500.0,0.00014617,2]
[333710894,1722394239399,-1269.97,0.00014617,2]
[333710896,1722394239409,-1190.85,0.00014617,2]
[333710898,1722394239419,-500.0,0.00014618,2]
[333710900,1722394239429,-230.26871726,0.00014618,2]
[333710902,1722394239440,-253.63524393,0.00014618,2]
[333710904,1722394239450,-262.932252,0.00014618,2]
[333710906,1722394239461,-414.08791172,0.00014618,2]
[333710907,1722394239470,-500.0,0.00014618,2]
[333710909,1722394239481,-500.0,0.00014618,2]
[333710911,1722394239491,-500.0,0.00014618,2]
[333710913,1722394239502,-237.02914152,0.00014618,2]
[333710915,1722394239511,-500.0,0.00014618,2]
[333710917,1722394239521,-500.0,0.00014618,2]
[333710919,1722394239531,-500.0,0.00014618,2]
[333710921,1722394239541,-37216.5378487,0.00014619,2]
[333710923,1722394239551,-500.0,0.0001462,2]
[333710925,1722394239560,-513.21634924,0.00014621,2]
[333710927,1722394239570,-507.64212273,0.00014621,2]
[333710929,1722394239579,-185.18861223,0.00014621,2]
[333710931,1722394239589,-500.0,0.00014621,2]
[333710933,1722394239599,-500.0,0.00014621,2]
[333710935,1722394239609,-535.22408806,0.00014621,2]
[333710937,1722394239620,-500.0,0.00014621,2]
[333710939,1722394239630,-500.0,0.00014621,2]
[333710941,1722394239639,-500.0,0.00014621,2]
[333710943,1722394239650,-500.0,0.00014621,2]
[333710945,1722394239660,-500.0,0.00014621,2]
[333710947,1722394239670,-1937.15,0.00014621,2]
[333710949,1722394239680,-500.0,0.00014621,2]
[333710951,1722394239690,-209.64958809,0.00014621,2]
[333710954,1722394239699,-3216.25,0.00014621,2]
[333710956,1722394239709,-370.6865655,0.00014621,2]
[333710958,1722394239719,-1543.9,0.00014621,2]
[333710960,1722394239728,-500.0,0.00014621,2]
[333710962,1722394239737,-500.0,0.00014621,2]
[333710963,1722394239748,-773.68,0.00014621,2]
[333710966,1722394239759,-500.0,0.00014621,2]
[333710968,1722394239769,-500.0,0.00014621,2]
[333710970,1722394239779,-500.0,0.00014621,2]
[333710972,1722394239788,-500.0,0.00014621,2]
[333710974,1722394239798,-1230.4,0.00014621,2]
[333710976,1722394239808,-500.0,0.00014621,2]
[333710978,1722394239818,-764.33,0.00014621,2]
[333710980,1722394239829,-520.76660711,0.00014621,2]
[333710982,1722394239838,-500.0,0.00014621,2]
[333710984,1722394239848,-500.0,0.00014621,2]
[333710986,1722394239858,-575.19,0.00014621,2]
[333710988,1722394239868,-1331.95,0.00014621,2]
[333710990,1722394239878,-598.74,0.00014621,2]
[333710992,1722394239887,-500.0,0.00014621,2]
[333710994,1722394239897,-871.88,0.00014621,2]
[333710997,1722394239907,-500.0,0.00014621,2]
[333710999,1722394239917,-500.0,0.00014621,2]
[333711001,1722394239927,-771.38,0.00014621,2]